bitfinex-derivatives/quotes_SOLF0:USTF0_20250221
["timestamp","ask_amount","ask_price","bid_price","bid_amount"]
[1740172247321,5.9171,169.1,169.05,5.9185]
[1740172247824,0.0396113,169.09,169.06,0.04382179]
[1740172248216,0.0396113,169.09,169.06,5.96222179]
[1740172248922,0.0396113,169.09,169.06,0.04382179]
[1740172249122,1.13e-05,169.09,169.08,5.9177]
[1740172250018,1.13e-05,169.09,169.08,7.6766]
[1740172251123,1.13e-05,169.09,169.08,9.4514]
[1740172253929,1.13e-05,169.09,169.06,0.04382179]
[1740172254727,1.13e-05,169.09,169.07,5.9181]
[1740172255428,1.13e-05,169.09,169.06,5.96222179]
[1740172257431,5.9176113,169.09,169.06,0.04382179]
[1740172257627,1.13e-05,169.09,169.06,0.04382179]
[1740172258332,15.11658234,169.09,169.06,0.04382179]
[1740172258722,5.9181,169.07,169.06,0.04382179]
[1740172259437,1.13e-05,169.09,169.06,0.04382179]
[1740172259635,5.9178,169.08,169.06,0.04382179]
[1740172260531,1.13e-05,169.09,169.06,5.96202179]
[1740172260736,1.13e-05,169.09,169.06,0.04382179]
[1740172262339,23.37657104,169.08,168.94,0.77160453]
[1740172262541,15.11657104,169.05,168.9,15.11657104]
[1740172263040,1.6982,169.04,168.94,5.9226]
[1740172263235,1.6982,169.04,168.9,15.11657104]
[1740172263540,0.04145846,168.99,168.95,0.03878376]
[1740172263833,5.9219,168.96,168.95,0.03878376]
[1740172264735,0.04145846,168.99,168.95,0.03878376]
[1740172265330,5.9219,168.96,168.95,0.03878376]
[1740172267234,0.04145846,168.99,168.95,0.03878376]
[1740172267539,1.05627138,168.99,168.95,0.03878376]
[1740172267740,0.04145846,168.99,168.95,0.03878376]
[1740172268436,8.26,168.98,168.86,5.3013]
[1740172268635,1.7854,168.97,168.86,5.3013]
[1740172268942,25.26266202,168.96,168.86,3.5823]
[1740172269131,1.01489733,168.95,168.86,3.5823]
[1740172269331,1.735,168.95,168.81,1.7474]
[1740172269533,0.04349619,168.92,168.89,0.0405604]
[1740172269742,5.9237,168.91,168.89,0.0405604]
[1740172271143,24.29126088,168.92,168.83,5.9265]
[1740172271641,5.9249,168.88,168.81,1.7474]
[1740172271842,24.24776469,168.92,168.81,1.7474]
[1740172272439,0.044921,168.88,168.81,1.7474]
[1740172273541,0.044921,168.88,168.83,5.9262]
[1740172274942,0.044921,168.88,168.84,5.9261]
[1740172276545,0.044921,168.88,168.78,4.30472184]
[1740172276745,5.969721,168.88,168.83,5.9264]
[1740172277145,0.044921,168.88,168.78,4.30472184]
[1740172277746,0.044921,168.88,168.83,5.9262]
[1740172277945,0.044921,168.88,168.78,4.30472184]
[1740172278348,5.969721,168.88,168.83,5.9264]
[1740172279247,5.969721,168.88,168.84,5.9261]
[1740172282148,0.044921,168.88,168.78,4.30472184]
[1740172283552,5.969721,168.88,168.78,4.30472184]
[1740172283849,0.044921,168.88,168.78,4.30472184]
[1740172284652,0.044921,168.88,168.86,5.9253]
[1740172286645,0.044921,168.88,168.86,6.9253]
[1740172287150,0.044921,168.88,168.87,5.9251]
[1740172287550,0.044921,168.88,168.86,6.9254]
[1740172288150,0.044921,168.88,168.87,5.9251]
[1740172288754,5.9225,168.95,168.91,5.9236]
[1740172289349,10.0654,168.97,168.91,5.9236]
[1740172289655,15.16659595,169.06,168.9,15.16659595]
[1740172289856,15.16659595,169.06,168.92,0.04424573]
[1740172289857,0.04259187,168.96,168.92,0.04424573]
[1740172290152,5.9202,169.01,168.96,5.9217]
[1740172290554,15.16659595,169.06,168.91,1.7696]
[1740172290555,0.0451316,169.0,168.91,1.7696]
[1740172290852,0.0451316,169.0,168.97,0.04373983]
[1740172291649,15.21172755,169.0,168.97,0.04373983]
[1740172292755,15.21172755,169.0,168.91,1.7696]
[1740172292950,15.16659595,168.96,168.87,1.8611]
[1740172293151,3.4926,168.99,168.87,1.8611]
[1740172293355,15.16659595,168.97,168.87,1.8611]
[1740172293760,5.9224,168.95,168.9,5.9238]
[1740172293962,5.9224,168.95,168.87,3.707]
[1740172294258,0.04261787,168.94,168.87,3.707]
[1740172294453,0.04261787,168.94,168.89,5.9241]
[1740172295058,0.04261787,168.94,168.87,3.707]
[1740172295252,0.04261787,168.94,168.89,5.9241]
[1740172295656,0.04261787,168.94,168.87,3.707]
[1740172296058,5.9231,168.93,168.87,3.707]
[1740172297059,15.16659595,168.91,168.86,1.0]
[1740172297260,15.16659595,168.88,168.86,1.0]
[1740172297559,5.9251,168.87,168.86,1.0]
[1740172301162,0.04392829,168.9,168.86,1.0]
[1740172301662,5.96812829,168.9,168.86,1.0]
[1740172302256,0.04392829,168.9,168.86,1.0]
[1740172302761,5.96822829,168.9,168.86,6.9253]
[1740172302958,0.04392829,168.9,168.86,6.9253]
[1740172303157,0.04392829,168.9,168.86,1.0]
[1740172304159,0.04392829,168.9,168.89,5.9244]
[1740172305763,5.9222,168.96,168.87,5.3393]
[1740172305965,5.9222,168.96,168.92,5.9233]
[1740172306962,5.96705979,168.96,168.92,5.96719936]
[1740172308260,0.04485979,168.96,168.94,5.9226]
[1740172308458,0.04485979,168.96,168.92,0.04389936]
[1740172308761,5.9224,168.95,168.92,0.04389936]
[1740172309768,0.04485979,168.96,168.92,0.04389936]
[1740172310266,0.04485979,168.96,168.93,5.9229]
[1740172310468,0.04485979,168.96,168.92,0.04389936]
[1740172310867,0.04485979,168.96,168.95,5.9223]
[1740172311568,0.04485979,168.96,168.94,5.9225]
[1740172311961,0.04485979,168.96,168.92,0.04389936]
[1740172312161,5.9224,168.95,168.92,0.04389936]
[1740172312771,0.04485979,168.96,168.92,0.04389936]
[1740172314070,0.04485979,168.96,168.94,5.9226]
[1740172314770,0.04485979,168.96,168.92,0.04389936]
[1740172315174,0.04485979,168.96,168.93,5.9227]
[1740172315375,0.04485979,168.96,168.92,0.04389936]
[1740172316370,0.04485979,168.96,168.93,5.9229]
[1740172316570,0.04485979,168.96,168.92,0.04389936]
[1740172317472,5.9228,168.94,168.92,0.04389936]
[1740172317775,24.3260936,168.96,168.92,0.04389936]
[1740172318180,24.28123381,168.92,168.86,1.0]
[1740172318476,11.7773,168.95,168.86,1.0]
[1740172318776,1.01211562,168.94,168.86,1.0]
[1740172319275,5.9247,168.89,168.86,1.0]
[1740172319667,0.04314131,168.92,168.86,1.0]
[1740172319867,5.9239,168.91,168.86,1.0]
[1740172320872,5.9239,168.91,168.86,6.9253]
[1740172321682,0.04314131,168.92,168.86,1.0]
[1740172323377,0.04314131,168.92,168.91,5.9237]
[1740172326376,4.131e-05,168.92,168.91,5.9237]
[1740172328880,4.131e-05,168.92,168.9,0.03912986]
[1740172329576,8.28004131,168.92,168.86,1.0]
[1740172329780,1.01167292,168.91,168.86,1.0]
[1740172330177,5.9251,168.87,168.86,1.0]
[1740172334074,5.9255,168.86,168.85,0.02064832]
[1740172334281,1.7649,168.87,168.78,0.77232184]
[1740172335084,24.24144661,168.85,168.74,1.745]
[1740172335278,5.9282,168.79,168.75,5.9292]
[1740172337879,0.04459084,168.81,168.7,1.8413]
[1740172338075,5.9276,168.8,168.76,5.9288]
[1740172338286,0.04221907,168.77,168.7,1.8413]
[1740172338985,5.9293,168.76,168.72,5.9303]
[1740172339187,0.04221907,168.77,168.69,3.7018]
[1740172339487,5.9298,168.74,168.69,3.7018]
[1740172339877,1.7678,168.79,168.69,3.7018]
[1740172340082,0.04502392,168.73,168.69,3.7018]
[1740172340385,0.04502392,168.73,168.71,5.9306]
[1740172340581,0.04502392,168.73,168.69,3.7018]
[1740172340782,0.04502392,168.73,168.72,5.9304]
[1740172341279,8.28,168.82,168.76,5.9288]
[1740172341483,8.28,168.82,168.69,3.7018]
[1740172341879,8.28,168.82,168.74,5.9294]
[1740172341880,5.9283,168.78,168.74,5.9294]
[1740172342078,8.28,168.82,168.69,3.7018]
[1740172342478,0.04246248,168.77,168.74,0.04296625]
[1740172342677,0.04246248,168.77,168.76,5.9287]
[1740172344489,0.04246248,168.77,168.75,5.9293]
[1740172344884,0.04246248,168.77,168.74,0.04296625]
[1740172345086,0.04246248,168.77,168.76,5.929]
[1740172346387,0.04246248,168.77,168.74,0.04296625]
[1740172346388,24.24144661,168.85,168.74,0.04296625]
[1740172346587,10.0542,168.87,168.79,5.9277]
[1740172346786,1.01012161,168.86,168.79,5.9277]
[1740172347086,1.01012161,168.86,168.69,15.5645]
[1740172347291,1.7742,168.87,168.69,15.5645]
[1740172347491,10.0542,168.87,168.69,15.5645]
[1740172347691,0.0412034,168.8,168.76,0.03940662]
[1740172347892,5.9263,168.84,168.8,5.9273]
[1740172348390,5.96562791,168.84,168.8,5.9273]
[1740172348586,5.96562791,168.84,168.8,5.96782878]
[1740172348795,5.96562791,168.84,168.81,5.9272]
[1740172349892,0.03932791,168.84,168.8,0.04052878]
[1740172350394,0.03932791,168.84,168.82,5.9268]
[1740172351196,0.03932791,168.84,168.8,0.04052878]
[1740172351396,0.03932791,168.84,168.83,5.9265]
[1740172352193,0.03932791,168.84,168.8,0.04052878]
[1740172352395,0.03932791,168.84,168.81,5.9269]
[1740172352595,0.03932791,168.84,168.8,0.04052878]
[1740172352996,0.03932791,168.84,168.82,5.9268]
[1740172353198,0.03932791,168.84,168.8,0.04052878]
[1740172353495,0.03932791,168.84,168.81,5.9269]
[1740172353696,0.03932791,168.84,168.8,0.04052878]
[1740172353996,0.03932791,168.84,168.8,5.96802878]
[1740172354296,0.03932791,168.84,168.8,0.04052878]
[1740172354602,15.22399384,168.84,168.8,0.04052878]
[1740172354900,15.22399384,168.84,168.8,0.24052878]
[1740172355101,5.9272,168.81,168.8,0.24052878]
[1740172355302,15.22399384,168.84,168.8,0.24052878]
[1740172355603,5.9266,168.83,168.8,0.24052878]
[1740172356203,0.03932791,168.84,168.8,0.24052878]
[1740172356797,0.03932791,168.84,168.81,5.9269]
[1740172356994,0.03932791,168.84,168.8,0.24052878]
[1740172357402,0.03932791,168.84,168.82,5.9266]
[1740172358202,0.03932791,168.84,168.8,0.24052878]
[1740172358203,0.03932791,168.84,168.83,5.9265]
[1740172358401,0.03932791,168.84,168.8,0.24052878]
[1740172360006,5.96552791,168.84,168.8,6.16802878]
[1740172360203,0.03932791,168.84,168.8,0.24052878]
[1740172362907,5.9269,168.82,168.8,0.24052878]
[1740172363109,0.03932791,168.84,168.8,0.24052878]
[1740172363611,5.9268,168.83,168.8,0.24052878]
[1740172363913,0.03932791,168.84,168.8,0.24052878]
[1740172364613,5.9272,168.82,168.8,0.24052878]
[1740172364813,0.03932791,168.84,168.8,0.24052878]
[1740172365114,5.9271,168.82,168.8,0.24052878]
[1740172365310,0.03932791,168.84,168.8,0.24052878]
[1740172365814,0.03932791,168.84,168.82,5.9267]
[1740172366017,0.03932791,168.84,168.8,0.24052878]
[1740172366715,0.03932791,168.84,168.83,5.9265]
[1740172367321,0.03932791,168.84,168.8,0.24052878]
[1740172367615,0.03932791,168.84,168.82,5.9266]
[1740172368008,0.03932791,168.84,168.8,0.24052878]
[1740172368009,0.03932791,168.84,168.83,5.9265]
[1740172368406,0.03932791,168.84,168.8,0.24052878]
[1740172368618,0.03932791,168.84,168.8,6.16782878]
[1740172368913,5.96552791,168.84,168.8,0.24052878]
[1740172369808,5.96552791,168.84,168.8,6.16792878]
[1740172370918,0.03932791,168.84,168.8,0.24052878]
[1740172371618,0.03932791,168.84,168.82,5.9265]
[1740172372019,0.03932791,168.84,168.8,0.24052878]
[1740172373012,0.03932791,168.84,168.83,5.9265]
[1740172373617,6.63388,168.86,168.83,5.9265]
[1740172374518,0.70838,168.86,168.81,1.8202]
[1740172374718,0.75333307,168.86,168.81,1.8202]
[1740172376323,0.75333307,168.86,168.85,5.9258]
[1740172377623,5.9245,168.89,168.85,5.9258]
[1740172378330,5.9251,168.88,168.84,5.96928043]
[1740172378724,5.96885849,168.88,168.84,5.96928043]
[1740172380225,5.9252,168.87,168.84,0.04328043]
[1740172380427,0.04375849,168.88,168.84,0.04328043]
[1740172380928,5.9257,168.86,168.84,0.04328043]
[1740172381327,0.04375849,168.88,168.84,0.04328043]
[1740172382324,5.9251,168.87,168.84,0.04328043]
[1740172382518,0.04375849,168.88,168.84,0.04328043]
[1740172382926,5.9254,168.87,168.84,0.04328043]
[1740172383324,0.04375849,168.88,168.84,0.04328043]
[1740172383631,5.9256,168.86,168.84,0.04328043]
[1740172384332,0.04375849,168.88,168.84,0.04328043]
[1740172384835,5.9258,168.85,168.84,0.04328043]
[1740172385433,5.9272,168.81,168.8,0.2]
[1740172387333,0.03873531,168.82,168.8,6.1275]
[1740172387633,0.03873531,168.82,168.8,0.2]
[1740172389239,0.03873531,168.82,168.81,5.9272]
[1740172390939,0.03873531,168.82,168.8,0.2]
[1740172391433,5.96583531,168.82,168.8,0.2]
[1740172391637,0.03873531,168.82,168.8,0.2]
[1740172392041,5.9272,168.81,168.8,0.2]
[1740172393338,5.9276,168.8,168.79,0.04411856]
[1740172396939,0.03873531,168.82,168.79,0.04411856]
[1740172397140,5.9274,168.81,168.79,0.04411856]
[1740172397335,0.03873531,168.82,168.79,0.04411856]
[1740172398343,5.96583531,168.82,168.79,5.97191856]
[1740172398542,0.03873531,168.82,168.79,0.04411856]
[1740172398943,5.9272,168.81,168.79,0.04411856]
[1740172399336,5.9276,168.8,168.79,0.04411856]
[1740172402854,5.9276,168.8,168.79,1.856e-05]
[1740172411364,5.9272,168.81,168.79,1.856e-05]
[1740172411864,0.03873531,168.82,168.79,1.856e-05]
[1740172412859,0.03873531,168.82,168.81,5.9272]
[1740172414265,202.28,168.92,168.8,5.4167]
[1740172414462,5.9245,168.89,168.8,5.4167]
[1740172415165,5.9241,168.9,168.8,5.4167]
[1740172415368,0.0391507,168.86,168.83,0.0411047]
[1740172415557,194.0,168.92,168.83,0.0411047]
[1740172415763,5.9238,168.91,168.83,0.0411047]
[1740172416265,194.0,168.92,168.83,0.0411047]
[1740172416467,5.9245,168.89,168.83,0.0411047]
[1740172416863,194.0,168.92,168.85,5.9255]
[1740172416864,0.04319548,168.88,168.85,5.9255]
[1740172417066,0.04319548,168.88,168.8,20.58510391]
[1740172417263,0.04319548,168.88,168.85,0.04519772]
[1740172417566,0.04319548,168.88,168.85,5.97079772]
[1740172418569,0.04319548,168.88,168.85,0.04519772]
[1740172419771,0.04319548,168.88,168.86,5.9252]
[1740172420069,0.04319548,168.88,168.85,0.04519772]
[1740172420275,0.04319548,168.88,168.85,5.97089772]
[1740172420464,0.04319548,168.88,168.85,0.04519772]
[1740172421567,0.04319548,168.88,168.85,5.97089772]
[1740172421760,0.04319548,168.88,168.85,0.04519772]
[1740172422472,0.04319548,168.88,168.87,5.9251]
[1740172428673,0.04319548,168.88,168.85,5.97069772]
[1740172429275,0.04319548,168.88,168.85,0.04519772]
[1740172430076,0.04319548,168.88,168.87,5.9251]
[1740172431667,26.94890391,168.98,168.91,5.9237]
[1740172431870,5.9227,168.94,168.91,5.9237]
[1740172432071,5.9227,168.94,168.8,20.58510391]
[1740172432270,18.68890391,168.98,168.8,20.58510391]
[1740172432472,5.923,168.93,168.89,5.9242]
[1740172432778,5.96662786,168.93,168.89,0.0408969]
[1740172433573,5.96662786,168.93,168.9,5.924]
[1740172433978,5.96662786,168.93,168.89,0.0408969]
[1740172433979,0.04362786,168.93,168.89,0.0408969]
[1740172434581,5.924,168.9,168.89,0.0408969]
[1740172435674,0.04362786,168.93,168.89,0.0408969]
[1740172436076,0.04362786,168.93,168.89,5.9651969]
[1740172436277,0.04362786,168.93,168.89,0.0408969]
[1740172436577,0.04362786,168.93,168.9,5.9238]
[1740172437573,5.96662786,168.93,168.9,5.9238]
[1740172437978,0.04362786,168.93,168.91,5.9236]
[1740172438583,0.04362786,168.93,168.92,5.9233]
[1740172439982,9.70150869,168.99,168.93,5.9228]
[1740172440488,5.9218,168.97,168.93,5.9228]
[1740172440988,5.9213,168.98,168.94,5.9224]
[1740172441183,0.03783256,168.97,168.94,5.9224]
[1740172441394,0.03783256,168.97,168.93,0.03934896]
[1740172441587,5.95963256,168.97,168.93,5.96214896]
[1740172442183,0.03783256,168.97,168.93,0.03934896]
[1740172442493,15.15377684,168.96,168.93,0.03934896]
[1740172442685,16.95897684,168.96,168.93,0.03934896]
[1740172442893,5.9226,168.94,168.93,0.03934896]
[1740172444794,16.95897684,168.96,168.85,1.7783]
[1740172444991,5.9245,168.89,168.86,5.9253]
[1740172445392,5.925,168.88,168.82,3.5933]
[1740172445592,15.15377684,168.93,168.82,3.5933]
[1740172445994,5.9254,168.87,168.86,0.0407281]
[1740172449106,0.04130649,168.89,168.86,0.0407281]
[1740172449299,0.04130649,168.89,168.87,5.9248]
[1740172449902,0.04130649,168.89,168.88,5.9247]
[1740172450194,162.43096977,169.0,168.87,3.5488]
[1740172450500,162.43096977,169.0,168.89,15.15377684]
[1740172450700,5.9213,168.98,168.89,15.15377684]
[1740172450900,162.43096977,169.0,168.89,15.15377684]
[1740172451096,0.03919525,168.96,168.93,0.04065474]
[1740172451502,0.03919525,168.96,168.95,5.9223]
[1740172453804,5.9196,169.03,168.98,5.9209]
[1740172454004,10.1049,169.08,168.95,15.15377684]
[1740172454301,1.01271842,169.07,168.95,15.15377684]
[1740172454903,0.04300976,169.03,168.99,0.03747359]
[1740172455103,5.9202,169.02,168.99,0.03747359]
[1740172455696,0.04300976,169.03,168.99,0.03747359]
[1740172456299,5.9199,169.02,168.99,0.03747359]
[1740172457004,0.04300976,169.03,168.99,0.03747359]
[1740172457005,5.9202,169.01,168.99,0.03747359]
[1740172457398,0.04300976,169.03,168.99,0.03747359]
[1740172459097,5.9205,169.0,168.99,0.03747359]
[1740172459606,0.04300976,169.03,168.99,0.03747359]
[1740172460501,0.04300976,169.03,169.01,5.9202]
[1740172463003,0.04300976,169.03,168.99,0.03747359]
[1740172463501,15.15377684,169.02,168.99,0.03747359]
[1740172463707,5.9205,169.0,168.99,0.03747359]
[1740172464409,0.04300976,169.03,168.99,0.03747359]
[1740172466408,5.9199,169.02,168.99,5.95807359]
[1740172466608,0.04300976,169.03,168.99,5.95807359]
[1740172466907,0.04300976,169.03,168.99,0.03747359]
[1740172467408,0.04300976,169.03,169.01,5.9199]
[1740172468110,0.04300976,169.03,169.02,5.9198]
[1740172469103,1.01294003,169.08,169.03,5.9193]
[1740172469408,1.01294003,169.08,168.98,1.7069]
[1740172469610,5.9191,169.05,169.01,5.92]
[1740172469806,194.0,169.09,168.98,1.7069]
[1740172470007,1.01296178,169.08,168.98,1.7069]
[1740172470310,0.0454987,169.05,169.02,0.04176842]
[1740172470705,0.0454987,169.05,169.03,5.9193]
[1740172471108,0.0454987,169.05,169.02,0.04176842]
[1740172471308,0.0454987,169.05,169.03,5.9195]
[1740172472707,0.0454987,169.05,169.04,5.9191]
[1740172477115,18.72387684,169.14,169.02,0.04176842]
[1740172477316,5.9174,169.09,169.01,1.7874]
[1740172477617,3.5701,169.14,169.03,15.15377684]
[1740172477917,5.9165,169.12,169.03,15.15377684]
[1740172478312,0.04498168,169.09,169.08,5.9175]
[1740172478712,1.01329874,169.16,169.1,5.9168]
[1740172478910,5.9158,169.14,169.06,15.15377684]
[1740172479110,5.9158,169.14,169.11,0.04449241]
[1740172479512,5.9157,169.14,169.11,0.04449241]
[1740172479918,0.0399957,169.15,169.11,0.04449241]
[1740172480915,15.15377684,169.14,169.02,1.7933]
[1740172481113,4.52621652,169.13,169.03,5.9193]
[1740172481315,1.01341652,169.12,169.03,5.9193]
[1740172481917,1.01341652,169.12,169.02,1.7933]
[1740172482119,0.0416489,169.09,169.06,0.03931678]
[1740172483215,5.9181,169.07,169.06,0.03931678]
[1740172485311,0.0416489,169.09,169.06,0.03931678]
[1740172486220,5.9178,169.08,169.06,0.03931678]
[1740172486816,0.0416489,169.09,169.06,0.03931678]
[1740172487016,5.9181,169.07,169.06,0.03931678]
[1740172488014,0.0416489,169.09,169.06,0.03931678]
[1740172488619,5.9181,169.07,169.06,0.03931678]
[1740172491920,5.9181,169.07,169.06,1.678e-05]
[1740172492421,6.93092503,169.07,169.06,1.678e-05]
[1740172492821,1.01282503,169.07,168.95,1.7766]
[1740172493021,1.795,169.06,168.96,5.9218]
[1740172493222,1.01282503,169.05,168.96,5.9218]
[1740172493515,16.16660187,169.05,168.94,63.02761197]
[1740172493721,15.15377684,169.05,168.94,63.02761197]
[1740172493922,5.9215,168.98,168.94,63.02761197]
[1740172494319,0.04249105,169.01,168.94,63.07082523]
[1740172495117,0.04249105,169.01,168.94,78.22460207]
[1740172495321,0.04249105,169.01,168.94,63.07082523]
[1740172495620,5.9211,168.99,168.94,63.07082523]
[1740172495816,5.9211,168.99,168.95,5.9223]
[1740172496222,0.04249105,169.01,168.95,5.9223]
[1740172496620,0.04249105,169.01,168.96,5.9217]
[1740172496821,5.9206,169.0,168.96,5.9217]
[1740172497924,5.9209,168.99,168.96,5.9217]
[1740172498217,0.04249105,169.01,168.94,0.04321326]
[1740172498423,5.9218,168.97,168.94,0.04321326]
[1740172498817,5.96659428,168.97,168.94,5.96581326]
[1740172499017,0.04479428,168.97,168.94,0.04321326]
[1740172499523,0.04479428,168.97,168.95,5.9221]
[1740172499718,0.04479428,168.97,168.94,0.04321326]
[1740172500117,0.04479428,168.97,168.94,5.96551326]
[1740172500321,0.04479428,168.97,168.94,0.04321326]
[1740172500922,5.9223,168.95,168.94,0.04321326]
[1740172501520,5.9221,168.96,168.94,0.04321326]
[1740172501728,0.04479428,168.97,168.94,0.04321326]
[1740172502121,5.96669428,168.97,168.94,0.04321326]
[1740172503028,5.96669428,168.97,168.94,5.96581326]
[1740172503727,5.96669428,168.97,168.94,0.04321326]
[1740172505027,0.04479428,168.97,168.94,0.04321326]
[1740172505627,5.9222,168.96,168.94,0.04321326]
[1740172507330,5.9223,168.95,168.94,0.04321326]
[1740172508729,5.9223,168.95,168.94,1.326e-05]
[1740172510831,6.93393133,168.95,168.94,1.326e-05]
[1740172511432,5.9254,168.87,168.84,5.9261]
[1740172511628,18.72267684,168.94,168.81,5.2861]
[1740172512533,0.0413154,168.89,168.86,0.04369432]
[1740172513630,0.0413154,168.89,168.87,5.9248]
[1740172513833,0.0413154,168.89,168.86,0.04369432]
[1740172514327,0.0413154,168.89,168.87,5.9248]
[1740172514836,0.0413154,168.89,168.86,0.04369432]
[1740172515036,0.0413154,168.89,168.88,5.9247]
[1740172515431,0.0413154,168.89,168.87,5.925]
[1740172515828,0.0413154,168.89,168.86,0.04369432]
[1740172516535,0.0413154,168.89,168.88,5.9247]
[1740172522648,1.54e-05,168.89,168.88,5.9247]
[1740172522842,1.8784,168.99,168.94,5.9224]
[1740172523050,5.9219,168.97,168.94,5.9224]
[1740172523244,1.8784,168.99,168.86,1.8063]
[1740172523548,1.8784,168.99,168.95,5.9222]
[1740172523948,1.91689076,168.99,168.95,5.9604489]
[1740172524149,1.91689076,168.99,168.95,0.0382489]
[1740172524450,0.03849076,168.99,168.95,0.0382489]
[1740172524946,5.9218,168.97,168.95,0.0382489]
[1740172526146,0.03849076,168.99,168.95,0.0382489]
[1740172526340,5.9219,168.96,168.95,0.0382489]
[1740172527149,15.15377684,168.98,168.81,3.5753]
[1740172527350,15.15377684,168.94,168.82,1.8737]
[1740172528067,1.8025,168.95,168.82,1.8737]
[1740172528251,0.04039209,168.9,168.86,0.04460993]
[1740172528853,5.9251,168.87,168.86,0.04460993]
[1740172529354,5.9251,168.87,168.86,9.93e-06]
[1740172531254,5.9249,168.88,168.86,9.93e-06]
[1740172531558,0.04039209,168.9,168.86,9.93e-06]
[1740172532358,5.9249,168.88,168.86,9.93e-06]
[1740172532959,0.04039209,168.9,168.86,9.93e-06]
[1740172533559,5.925,168.88,168.86,9.93e-06]
[1740172533756,0.04039209,168.9,168.86,9.93e-06]
[1740172534162,5.9251,168.87,168.86,9.93e-06]
[1740172535963,7.7732,168.87,168.86,9.93e-06]
[1740172539763,5.9276,168.8,168.78,6.46]
[1740172540057,5.9276,168.8,168.77,5.9284]
[1740172540263,1.8481,168.87,168.76,3.6229]
[1740172540863,5.9275,168.81,168.8,0.03764494]
[1740172541068,0.03792774,168.83,168.8,0.03764494]
[1740172541966,5.9272,168.81,168.8,0.03764494]
[1740172542868,5.9272,168.81,168.8,4.494e-05]
[1740172543566,5.9272,168.81,168.68,8.20582557]
[1740172543567,8.24,168.81,168.68,8.20582557]
[1740172543767,1.01019316,168.8,168.68,13.56352557]
[1740172544163,9.97,168.81,168.68,13.56352557]
[1740172544766,0.04266679,168.76,168.73,0.04398141]
[1740172545167,0.04266679,168.76,168.74,5.9295]
[1740172545367,0.04266679,168.76,168.73,0.04398141]
[1740172545568,0.04266679,168.76,168.75,5.9293]
[1740172559277,0.04266679,168.76,168.73,0.04398141]
[1740172559278,3.4869,168.86,168.73,15.19775825]
[1740172559481,3.4869,168.86,168.83,5.9263]
[1740172559678,3.4869,168.86,168.73,15.15377684]
[1740172559679,1.73,168.86,168.73,15.15377684]
[1740172559979,11.8434,168.97,168.87,5.925]
[1740172559980,15.15377684,168.91,168.87,5.925]
[1740172560183,5.3456,168.92,168.87,5.925]
[1740172560584,5.9245,168.89,168.87,0.04126102]
[1740172560880,194.03983466,168.9,168.87,0.04126102]
[1740172561080,0.03983466,168.9,168.87,0.04126102]
[1740172562486,0.03983466,168.9,168.89,5.9244]
[1740172562683,0.03983466,168.9,168.87,0.04126102]
[1740172563079,5.96393466,168.9,168.87,0.04126102]
[1740172563285,0.03983466,168.9,168.87,0.04126102]
[1740172563989,5.9244,168.89,168.87,0.04126102]
[1740172566291,5.9247,168.88,168.87,0.04126102]
[1740172572291,0.03983466,168.9,168.87,0.04126102]
[1740172572492,5.96413466,168.9,168.87,5.96626102]
[1740172573489,0.03983466,168.9,168.87,0.04126102]
[1740172575693,5.9247,168.88,168.87,0.04126102]
[1740172575988,0.03983466,168.9,168.87,0.04126102]
[1740172579388,5.9247,168.88,168.87,0.04126102]
[1740172580693,0.03983466,168.9,168.87,0.04126102]
[1740172582192,5.9247,168.88,168.87,0.04126102]
[1740172582393,0.03983466,168.9,168.87,0.04126102]
[1740172582796,0.03983466,168.9,168.88,5.9247]
[1740172583496,0.03983466,168.9,168.87,5.96626102]
[1740172583898,5.96393466,168.9,168.87,5.96626102]
[1740172584100,0.03983466,168.9,168.87,0.04126102]
[1740172584298,0.03983466,168.9,168.88,5.9247]
[1740172585299,5.96393466,168.9,168.87,5.96626102]
[1740172585500,0.03983466,168.9,168.87,0.04126102]
[1740172586820,5.96393466,168.9,168.87,5.96606102]
[1740172587303,5.96393466,168.9,168.87,0.04126102]
[1740172587304,0.03983466,168.9,168.87,0.04126102]
[1740172587708,5.9247,168.88,168.87,0.04126102]
[1740172590112,5.96403466,168.9,168.87,5.96636102]
[1740172591504,0.03983466,168.9,168.89,5.9244]
[1740172591908,5.96393466,168.9,168.87,5.96626102]
[1740172592202,0.03983466,168.9,168.87,0.04126102]
[1740172592610,5.9247,168.88,168.87,0.04126102]
[1740172598208,5.96403466,168.9,168.87,0.04126102]
[1740172598404,0.03983466,168.9,168.87,0.04126102]